fUSD/lending_fUSD_20260115
["ID","MTS","AMOUNT","RATE_DAILY","PERIOD"]
[401994925,1768449767506,156.81,0.00010157,2]
[401994926,1768449767705,156.81,0.00010792,2]
[401994927,1768449767925,156.81,0.00011426,2]
[401994928,1768449768153,156.81,0.00012061,2]
[401994929,1768449768400,156.81,0.00012696,2]
[401994930,1768449768603,156.81,0.00013331,2]
[401994931,1768449768803,156.81,0.00013965,2]
[401994932,1768449769011,156.81,0.000146,2]
[401994933,1768449902825,500.0,0.0003013,120]
[401994935,1768449989935,411.51,0.00019178,30]
[401994936,1768450082376,457.184182,0.00015146,2]
[401994937,1768450169099,151.75462983,0.00029114,120]
[401994945,1768450232319,-343.47787126,0.00015223,2]
[401994946,1768450232328,-277.0,0.00015223,2]
[401994947,1768450232338,-324.57277036,0.00015227,2]
[401994948,1768450232347,-218.54131063,0.00015227,2]
[401994949,1768450232357,-1200.0,0.00015231,2]
[401994950,1768450232366,-300.0,0.00015231,2]
[401994951,1768450232375,-300.0,0.00015231,2]
[401994952,1768450232384,-4181.49064427,0.00015232,2]
[401994953,1768450232458,-1009.24355313,0.00015232,2]
[401994954,1768450232469,-303.63529994,0.00015232,2]
[401994955,1768450232481,-736.07642552,0.00015232,2]
[401994956,1768450232492,-987.4479749,0.00015232,2]
[401994959,1768450232554,-5784.96598384,0.00015232,2]
[401994960,1768450232567,-1427.00894998,0.00015232,2]
[401994962,1768450232582,-1580.09493811,0.00015232,2]
[401994964,1768450232591,-479.09231507,0.00015232,2]
[401994965,1768450232603,-276.67613801,0.00015232,2]
[401994967,1768450232612,-605.31965079,0.00015232,2]
[401994968,1768450232623,-15450.52576188,0.00015232,2]
[401994970,1768450232633,-179.56576937,0.00015232,2]
[401994971,1768450232642,-156.81,0.00015235,2]
[401994973,1768450232651,-500.0,0.00015253,2]
[401994974,1768450232661,-300.0,0.00015331,2]
[401994975,1768450232671,-249.0,0.00015331,2]
[401994977,1768450232680,-63536.38628206,0.00015332,2]
[401994978,1768450232692,-14286.31436503,0.00015332,2]
[401994980,1768450232703,-1273.9084426,0.00015332,2]
[401994982,1768450232714,-516.78011832,0.00015332,2]
[401994983,1768450232725,-3055.13271573,0.00015332,2]
[401994986,1768450232751,-483750.59741815,0.00015332,2]
[401994988,1768450232762,-3076.876,0.00015332,2]
[401994990,1768450232773,-270.69232887,0.00015332,2]
[401994992,1768450232784,-1407.00725734,0.00015332,2]
[401994994,1768450232795,-445.96440231,0.00015332,2]
[401994999,1768450232825,-1295.21988168,0.00015332,2]
[401995001,1768450232836,-20271.39612398,0.00015332,2]
[401995003,1768450232847,-682.15500896,0.00015332,2]
[401995005,1768450232858,-1286.0085527,0.00015332,2]
[401995008,1768450232876,-653.82212702,0.00015332,2]
[401995010,1768450232887,-347.43508066,0.00015332,2]
[401995013,1768450232898,-7282.46985046,0.00015332,2]
[401995038,1768450238384,-2629.97761171,0.00015332,2]
[401995039,1768450238499,-744.90071554,0.00015332,2]
[401995040,1768450238511,-36959.68183916,0.00015332,2]
[401995041,1768450238547,-457.18418221,0.00015332,2]
[401995042,1768450238558,-54053.18760492,0.00015332,2]
[401995043,1768450238570,-2524.94000031,0.00015332,2]
[401995044,1768450238581,-7243.67967299,0.00015332,2]
[401995202,1768450240608,-535.49292344,0.00015332,2]
[401995203,1768450240664,-291412.78949385,0.00015332,2]
[401995204,1768450240673,-69348.1922,0.00015332,2]
[401995205,1768450240682,-849.98390082,0.00015432,2]
[401995206,1768450240914,-247.59618458,0.000155,2]
[401995207,1768450240927,-500.0,0.00015522,2]
[401995208,1768450240936,-500.0,0.00015522,2]
[401995209,1768450240946,-500.0,0.00015522,2]
[401995210,1768450240955,-500.0,0.00015522,2]
[401995211,1768450240964,-500.0,0.00015522,2]
[401995212,1768450240974,-500.0,0.00015522,2]
[401995213,1768450240983,-500.0,0.00015522,2]
[401995214,1768450240991,-500.0,0.00015522,2]
[401995215,1768450241001,-500.0,0.00015522,2]
[401995216,1768450241010,-500.0,0.00015522,2]
[401995217,1768450241019,-500.0,0.00015522,2]
[401995218,1768450241028,-500.0,0.00015522,2]
[401995219,1768450241038,-500.0,0.00015522,2]
[401995221,1768450241047,-500.0,0.00015522,2]
[401995222,1768450241056,-500.0,0.00015522,2]
[401995223,1768450241065,-500.0,0.00015522,2]
[401995224,1768450241074,-500.0,0.00015522,2]
[401995225,1768450241083,-500.0,0.00015522,2]
[401995226,1768450241091,-500.0,0.00015522,2]
[401995227,1768450241101,-500.0,0.00015522,2]
[401995228,1768450241110,-500.0,0.00015522,2]
[401995229,1768450241120,-500.0,0.00015522,2]
[401995230,1768450241129,-500.0,0.00015522,2]
[401995231,1768450241138,-151.0,0.00015522,2]
[401995232,1768450241147,-151.0,0.00015522,2]
[401995233,1768450241157,-151.0,0.00015522,2]
[401995234,1768450241166,-151.0,0.00015522,2]
[401995235,1768450241176,-151.0,0.00015522,2]
[401995236,1768450241185,-9999.99,0.00015531,2]
[401995237,1768450241194,-500.0,0.00015531,2]
[401995238,1768450241203,-296.58550742,0.00015531,2]
[401995239,1768450241212,-500.0,0.00015531,2]
[401995240,1768450241221,-526.6228036,0.00015531,2]
[401995241,1768450241231,-163.56781265,0.00015531,2]
[401995242,1768450241240,-500.0,0.00015531,2]
[401995243,1768450241249,-500.0,0.00015531,2]
[401995244,1768450241258,-500.0,0.00015531,2]
[401995245,1768450241268,-500.0,0.00015531,2]
[401995246,1768450241277,-500.0,0.00015531,2]
[401995247,1768450241286,-500.0,0.00015531,2]
[401995248,1768450241294,-500.0,0.00015531,2]
[401995249,1768450241304,-500.0,0.00015531,2]
[401995250,1768450241313,-500.0,0.00015531,2]
[401995251,1768450241322,-500.0,0.00015531,2]
[401995252,1768450241331,-500.0,0.00015531,2]
[401995253,1768450241340,-500.0,0.00015531,2]
[401995254,1768450241350,-500.0,0.00015531,2]
[401995255,1768450241359,-500.0,0.00015531,2]
[401995256,1768450241369,-500.0,0.00015531,2]
[401995257,1768450241379,-500.0,0.00015531,2]
[401995258,1768450241388,-500.0,0.00015531,2]
[401995259,1768450241398,-500.0,0.00015531,2]
[401995260,1768450241408,-500.0,0.00015531,2]
[401995261,1768450241417,-500.0,0.00015531,2]
[401995262,1768450241427,-500.0,0.00015531,2]
[401995263,1768450241435,-500.0,0.00015531,2]
[401995264,1768450241444,-500.0,0.00015531,2]
[401995265,1768450241454,-500.0,0.00015531,2]
[401995266,1768450241463,-500.0,0.00015531,2]
[401995267,1768450241471,-500.0,0.00015531,2]
[401995268,1768450241480,-500.0,0.00015531,2]
[401995269,1768450241490,-500.0,0.00015531,2]
[401995270,1768450241499,-500.0,0.00015531,2]
[401995271,1768450241508,-500.0,0.00015531,2]
[401995272,1768450241517,-500.0,0.00015531,2]
[401995273,1768450241529,-500.0,0.00015531,2]
[401995274,1768450241538,-500.0,0.00015531,2]
[401995275,1768450241547,-500.0,0.00015531,2]
[401995276,1768450241556,-292.89640978,0.00015531,2]
[401995277,1768450241565,-500.0,0.00015531,2]
[401995278,1768450241574,-500.0,0.00015531,2]
[401995279,1768450241583,-500.0,0.00015531,2]
[401995280,1768450241592,-500.0,0.00015531,2]
[401995281,1768450241602,-500.0,0.00015531,2]
[401995282,1768450241611,-500.0,0.00015531,2]
[401995283,1768450241620,-500.0,0.00015531,2]
[401995284,1768450241629,-500.0,0.00015531,2]
[401995285,1768450241638,-500.0,0.00015531,2]
[401995286,1768450241647,-500.0,0.00015531,2]
[401995287,1768450241656,-500.0,0.00015531,2]
[401995288,1768450241666,-500.0,0.00015531,2]
[401995289,1768450241675,-500.0,0.00015531,2]
[401995290,1768450241684,-500.0,0.00015531,2]
[401995291,1768450241693,-500.0,0.00015531,2]
[401995292,1768450241703,-500.0,0.00015531,2]
[401995293,1768450241712,-500.0,0.00015531,2]
[401995294,1768450241721,-500.0,0.00015531,2]
[401995295,1768450241730,-179.28964098,0.00015531,2]
[401995296,1768450241738,-500.0,0.00015531,2]
[401995297,1768450241748,-500.0,0.00015531,2]
[401995298,1768450241758,-542.92548526,0.00015531,2]
[401995299,1768450241767,-500.0,0.00015531,2]
[401995300,1768450241775,-500.0,0.00015531,2]
[401995301,1768450241784,-500.0,0.00015531,2]
[401995302,1768450241793,-500.0,0.00015531,2]
[401995303,1768450241802,-500.0,0.00015531,2]
[401995304,1768450241811,-500.0,0.00015531,2]
[401995305,1768450241819,-502.00518748,0.00015531,2]
[401995306,1768450241828,-500.0,0.00015531,2]
[401995307,1768450241837,-500.0,0.00015531,2]
[401995308,1768450241846,-444.66179987,0.00015531,2]
[401995309,1768450241855,-731.82,0.00015562,2]
[401995310,1768450241864,-1000.0,0.00015632,2]
[401995311,1768450241873,-500.0,0.00015731,2]
[401995312,1768450241882,-500.0,0.00015731,2]
[401995313,1768450241892,-500.0,0.00015731,2]
[401995314,1768450241901,-500.0,0.00015731,2]
[401995315,1768450241911,-500.0,0.00015731,2]
[401995316,1768450241920,-525.51243154,0.00015731,2]
[401995317,1768450241929,-500.0,0.00015731,2]
[401995318,1768450241938,-500.0,0.00015731,2]
[401995319,1768450241948,-500.0,0.00015731,2]
[401995320,1768450241957,-486.66435485,0.00015731,2]
[401995321,1768450241966,-500.0,0.00015731,2]
[401995322,1768450241975,-500.0,0.00015731,2]
[401995323,1768450241987,-508.83778667,0.00015731,2]
[401995324,1768450241996,-500.0,0.00015731,2]
[401995325,1768450242005,-505.24437882,0.00015731,2]
[401995326,1768450242014,-500.0,0.00015731,2]
[401995327,1768450242023,-500.0,0.00015731,2]
[401995328,1768450242032,-510.1418066,0.00015731,2]
[401995329,1768450242040,-500.0,0.00015731,2]
[401995330,1768450242049,-500.0,0.00015731,2]
[401995331,1768450242059,-154.69460384,0.00015731,2]
[401995332,1768450242068,-198.66,0.00015772,2]
[401995333,1768450242077,-500.0,0.00015835,2]
[401995334,1768450242086,-151.0,0.00015842,2]
[401995335,1768450242095,-151.0,0.00015842,2]
[401995336,1768450242104,-156.81,0.0001587,2]
[401995337,1768450242113,-200.71593212,0.00015875,2]
[401995338,1768450242123,-27870.56,0.00015885,2]
[401995339,1768450242132,-1147.57,0.00015894,2]
[401995340,1768450242141,-500.0,0.00015999,2]
[401995341,1768450242150,-500.0,0.0001607,2]
[401995342,1768450242159,-7586.69792792,0.00016191,2]
[401995343,1768450242168,-731.82,0.00016341,2]
[401995344,1768450242178,-156.81,0.00016505,2]
[401995345,1768450242187,-420.0,0.00016666,2]
[401995346,1768450242196,-2500.0,0.00016745,2]
[401995347,1768450242205,-250.0,0.00016745,2]
[401995348,1768450242215,-211.20333349,0.00016745,2]
[401995349,1768450242223,-626.16,0.00016748,2]
[401995350,1768450242233,-1680.0,0.0001675,2]
[401995351,1768450242242,-3240.0,0.00016863,2]
[401995352,1768450242251,-731.82,0.00017119,2]
[401995353,1768450242260,-500.0,0.00017593,2]
[401995354,1768450242269,-150.0,0.00017699,2]
[401995355,1768450242278,-500.0,0.00017699,2]
[401995356,1768450242287,-150.0,0.00017699,2]
[401995357,1768450242296,-5743.0,0.00017699,2]
[401995358,1768450242306,-159.2878766,0.00017754,2]
[401995359,1768450242315,-500.0,0.00017754,2]
[401995360,1768450242323,-5743.0,0.00017754,2]
[401995361,1768450242334,-1819.52,0.00017779,2]
[401995362,1768450242343,-156.30857797,0.00017809,2]
[401995363,1768450242352,-5743.0,0.00017809,2]
[401995364,1768450242361,-5422.0,0.00017832,2]
[401995365,1768450242370,-5743.0,0.00017863,2]
[401995366,1768450242379,-731.82,0.00017897,2]
[401995367,1768450242388,-5743.0,0.00017918,2]
[401995368,1768450242396,-906.4435366,0.00017923,2]
[401995369,1768450242405,-5743.0,0.00017973,2]
[401995370,1768450242414,-5743.0,0.00018028,2]
[401995371,1768450242423,-150.0,0.00018054,2]
[401995372,1768450242433,-5743.0,0.00018083,2]
[401995373,1768450242442,-5743.0,0.00018137,2]
[401995374,1768450242451,-322.6107,0.00018174,2]
[401995375,1768450242460,-250.0,0.00018174,2]
[401995376,1768450242469,-1239.0,0.00018174,2]
[401995377,1768450242478,-500.0,0.00018174,2]
[401995378,1768450242487,-250.0,0.00018174,2]
[401995379,1768450242496,-500.0,0.00018174,2]
[401995380,1768450242505,-500.0,0.00018174,2]
[401995381,1768450242514,-250.0,0.00018174,2]
[401995382,1768450242524,-500.0,0.00018174,2]
[401995383,1768450242535,-500.0,0.00018174,2]
[401995384,1768450242545,-250.0,0.00018174,2]
[401995385,1768450242553,-500.0,0.00018174,2]
[401995386,1768450242562,-250.0,0.00018174,2]
[401995387,1768450242573,-500.0,0.00018174,2]
[401995388,1768450242582,-500.0,0.00018174,2]
[401995389,1768450242591,-250.0,0.00018174,2]
[401995390,1768450242600,-500.0,0.00018174,2]
[401995391,1768450242610,-500.0,0.00018174,2]
[401995392,1768450242618,-250.0,0.00018174,2]
[401995393,1768450242627,-500.0,0.00018174,2]
[401995394,1768450242637,-500.0,0.00018174,2]
[401995395,1768450242645,-500.0,0.00018174,2]
[401995396,1768450242654,-500.0,0.00018174,2]
[401995397,1768450242663,-250.0,0.00018174,2]
[401995398,1768450242672,-500.0,0.00018174,2]
[401995399,1768450242681,-250.0,0.00018174,2]
[401995400,1768450242690,-721.12765535,0.00018174,2]
[401995401,1768450242699,-500.0,0.00018174,2]
[401995402,1768450242708,-500.0,0.00018174,2]
[401995403,1768450242716,-250.0,0.00018174,2]
[401995404,1768450242725,-250.0,0.00018174,2]
[401995405,1768450242734,-500.0,0.00018174,2]
[401995406,1768450242743,-500.0,0.00018174,2]
[401995407,1768450242752,-250.0,0.00018174,2]
[401995408,1768450242761,-250.0,0.00018174,2]
[401995409,1768450242769,-500.0,0.00018174,2]
[401995410,1768450242778,-262.50340931,0.00018174,2]
[401995411,1768450242787,-500.0,0.00018174,2]
[401995412,1768450242796,-500.0,0.00018174,2]
[401995413,1768450242805,-578.20924308,0.00018174,2]
[401995414,1768450242814,-500.0,0.00018174,2]
[401995415,1768450242823,-500.0,0.00018174,2]
[401995416,1768450242832,-500.0,0.00018174,2]
[401995417,1768450242841,-500.0,0.00018174,2]
[401995418,1768450242850,-574.12855637,0.00018174,2]
[401995419,1768450242859,-500.0,0.00018174,2]
[401995420,1768450242868,-500.0,0.00018174,2]
[401995421,1768450242877,-250.0,0.00018174,2]
[401995422,1768450242886,-1000.0,0.00018174,2]
[401995423,1768450242895,-500.0,0.00018174,2]
[401995424,1768450242903,-250.0,0.00018174,2]
[401995425,1768450242912,-1000.0,0.00018174,2]
[401995426,1768450242921,-500.0,0.00018174,2]
[401995427,1768450242930,-250.0,0.00018174,2]
[401995428,1768450242940,-1000.0,0.00018174,2]
[401995429,1768450242949,-500.0,0.00018174,2]
[401995430,1768450242958,-227.45937162,0.00018174,2]
[401995431,1768450242967,-250.0,0.00018174,2]
[401995432,1768450242977,-1000.0,0.00018174,2]
[401995433,1768450242986,-500.0,0.00018174,2]
[401995434,1768450242995,-250.0,0.00018174,2]
[401995435,1768450243004,-1000.0,0.00018174,2]
[401995436,1768450243013,-500.0,0.00018174,2]
[401995437,1768450243021,-250.0,0.00018174,2]
[401995438,1768450243031,-1000.0,0.00018174,2]
[401995439,1768450243040,-250.0,0.00018174,2]
[401995440,1768450243049,-1000.0,0.00018174,2]
[401995441,1768450243058,-295.89130143,0.00018174,2]
[401995442,1768450243067,-1000.0,0.00018174,2]
[401995443,1768450243076,-1000.0,0.00018174,2]
[401995444,1768450243085,-1000.0,0.00018174,2]
[401995445,1768450243094,-1000.0,0.00018174,2]
[401995446,1768450243103,-620.0,0.00018174,2]
[401995447,1768450243113,-250.0,0.00018174,2]
[401995449,1768450243122,-250.0,0.00018174,2]
[401995451,1768450243131,-250.0,0.00018174,2]
[401995453,1768450243140,-250.0,0.00018174,2]
[401995455,1768450243149,-250.0,0.00018174,2]
[401995456,1768450243158,-250.0,0.00018174,2]
[401995457,1768450243168,-250.0,0.00018174,2]
[401995458,1768450243178,-250.0,0.00018174,2]
[401995459,1768450243187,-250.0,0.00018174,2]
[401995460,1768450243197,-250.0,0.00018174,2]
[401995461,1768450243206,-250.0,0.00018174,2]
[401995462,1768450243215,-5743.0,0.00018192,2]
[401995464,1768450243224,-180.0,0.00018235,2]
[401995466,1768450243234,-5743.0,0.00018247,2]
[401995467,1768450243244,-16009.96376962,0.00018272,2]
[401995468,1768450243255,-16055.84541263,0.00018272,2]
[401995469,1768450243265,-5743.0,0.00018302,2]
[401995470,1768450243276,-168.38,0.00018352,2]
[401995471,1768450243286,-5743.0,0.00018357,2]
[401995472,1768450243295,-4460.0,0.00018378,2]
[401995473,1768450243304,-5743.0,0.00018411,2]
[401995474,1768450243314,-562.0,0.0001842,2]
[401995475,1768450243324,-5743.0,0.00018466,2]
[401995476,1768450243334,-5743.0,0.00018521,2]
[401995477,1768450243344,-5743.0,0.00018576,2]
[401995478,1768450243353,-1781.0,0.0001863,2]
[401995479,1768450243362,-5743.0,0.00018631,2]
[401995480,1768450243370,-731.82,0.00018675,2]
[401995481,1768450243379,-5743.0,0.00018685,2]
[401995482,1768450243389,-595.37131296,0.00018722,2]
[401995483,1768450243398,-5743.0,0.0001874,2]
[401995484,1768450243407,-5743.0,0.00018795,2]
[401995485,1768450243418,-5743.0,0.0001885,2]
[401995486,1768450243589,-5743.0,0.00018904,2]
[401995487,1768450243599,-161.778,0.00018954,2]
[401995488,1768450243608,-1400.374,0.00018954,2]
[401995489,1768450243618,-5750.0,0.00018959,2]
[401995490,1768450243627,-755.76845306,0.00019171,2]
[401995491,1768450243635,-617.40005154,0.0001927,2]
[401995492,1768450243644,-334.5472959,0.00019543,2]
[401995493,1768450243653,-1239.0,0.00019543,2]
[401995494,1768450243662,-642.94,0.00019543,2]
[401995495,1768450243671,-1873.69624537,0.000197,2]
[401995496,1768450243679,-2000.0,0.000197,2]
[401995497,1768450243688,-640.24385345,0.00019818,2]
[401995498,1768450243697,-849.98390081,0.00019998,2]
[401995499,1768450243706,-5422.0,0.00020111,2]
[401995500,1768450243715,-663.93287602,0.00020366,2]
[401995501,1768450243725,-500.0,0.00020397,2]
[401995502,1768450243733,-168.38,0.00020646,2]
[401995503,1768450243743,-346.92554585,0.00020912,2]
[401995504,1768450243752,-1239.0,0.00020912,2]
[401995505,1768450243761,-666.72878,0.00020912,2]
[401995506,1768450243770,-747.8093786,0.00020913,2]
[401995507,1768450243780,-599.60298507,0.00020913,2]
[401995508,1768450243789,-688.49839244,0.00020914,2]
[401995509,1768450243798,-367.0,0.00021286,2]
[401995510,1768450243808,-367.0,0.00021294,2]
[401995511,1768450243816,-16009.96376962,0.00021313,2]
[401995512,1768450243825,-16055.84541263,0.00021313,2]
[401995513,1768450243834,-713.97283296,0.00021462,2]
[401995514,1768450243843,-367.0,0.00021741,2]
[401995515,1768450243852,-150.99,0.00021757,2]
[401995516,1768450243862,-7137.6,0.00021757,2]
[401995517,1768450243871,-555.0,0.000218,2]
[401995518,1768450243880,-300.0,0.000218,2]
[401995519,1768450243890,-158.97281869,0.00021806,2]
[401995520,1768450243899,-1599.07384275,0.00021823,2]
[401995521,1768450243908,-367.0,0.00021881,2]
[401995522,1768450243918,-740.38982778,0.0002201,2]
[401995523,1768450243928,-367.0,0.0002216,2]
[401995524,1768450243937,-1147.57,0.00022252,2]
[401995525,1768450243946,-359.76179104,0.00022281,2]
[401995526,1768450243955,-1239.0,0.00022281,2]
[401995527,1768450243965,-691.39774486,0.00022281,2]
[401995528,1768450243974,-367.0,0.00022322,2]
[401995530,1768450243983,-367.0,0.00022328,2]
[401995531,1768450243992,-367.0,0.00022344,2]
[401995532,1768450244001,-367.0,0.00022353,2]
[401995533,1768450244010,-5422.0,0.0002239,2]
[401995534,1768450244019,-767.7842514,0.00022558,2]
[401995535,1768450244028,-367.0,0.0002292,2]
[401995536,1768450244037,-168.38,0.0002294,2]
[401995538,1768450244046,-2392.11883443,0.00023023,2]
[401995540,1768450244056,-367.0,0.00023045,2]
[401995541,1768450244066,-796.19226871,0.00023106,2]
[401995542,1768450244075,-755.76845306,0.0002311,2]
[401995543,1768450244084,-500.0,0.000232,2]
[401995545,1768450244094,-367.0,0.00023237,2]
[401995547,1768450244103,-3236.6169,0.00023323,2]
[401995548,1768450244112,-2000.0,0.000234,2]
[401995549,1768450244122,-373.07297731,0.0002365,2]
[401995550,1768450244131,-1239.0,0.0002365,2]
[401995551,1768450244140,-716.97946142,0.0002365,2]
[401995552,1768450244150,-193.94093335,0.00023652,2]
[401995553,1768450244160,-621.78829552,0.00023652,2]
[401995554,1768450244169,-825.65138265,0.00023654,2]
[401995555,1768450244179,-198.66,0.00023658,2]
[401995556,1768450244188,-395.41512522,0.00024092,2]
[401995557,1768450244197,-411.51,0.00024225,30]
[401995558,1768450244206,-16009.96376962,0.00024353,2]
[401995559,1768450244216,-16055.84541263,0.00024353,2]
[401995560,1768450244225,-8201.51018888,0.00024402,2]
[401995561,1768450244235,-1000.0,0.00024509,2]
[401995562,1768450244245,-300.0,0.00024541,2]
[401995563,1768450244255,-188.63,0.00024563,2]
[401995564,1768450244264,-849.98390081,0.00024563,2]
[401995565,1768450244274,-1000.0,0.00024611,2]
[401995566,1768450244283,-150.0,0.00024668,2]
[401995567,1768450244292,-5422.0,0.00024669,2]
[401995568,1768450244301,-1000.0,0.00024715,2]
[401995569,1768450244310,-1543.2680647,0.00024755,2]
[401995570,1768450244320,-197489.4787084,0.00024755,2]
[401995571,1768450244329,-150.0,0.00024764,2]
[401995572,1768450244338,-151.95758753,0.00024792,2]
[401995573,1768450244347,-30819.63839928,0.000248,3]
[401995574,1768450246683,-114252.75201672,0.000248,3]
[401995575,1768450246692,-151.0,0.000249,2]
[401995576,1768450246701,-1263.0,0.000249,2]
[401995577,1768450246710,-151.0,0.000249,2]
[401995578,1768450246719,-1263.0,0.000249,2]
[401995579,1768450246727,-154.58529042,0.000249,2]
[401995580,1768450246736,-1263.0,0.000249,2]
[401995582,1768450246744,-151.0,0.000249,2]
[401995583,1768450246753,-1263.0,0.000249,2]
[401995584,1768450246762,-153.86121834,0.000249,2]
[401995585,1768450246770,-1263.0,0.000249,2]
[401995586,1768450246780,-1263.0,0.000249,2]
[401995587,1768450246789,-1263.0,0.000249,2]
[401995588,1768450246799,-422.86148081,0.000249,2]
[401995589,1768450246807,-153.77593758,0.000249,2]
[401995590,1768450246816,-158.37781232,0.000249,2]
[401995591,1768450246826,-151.0,0.000249,7]
[401995592,1768450246835,-151.0,0.000249,7]
[401995593,1768450246844,-151.0,0.000249,7]
[401995594,1768450246853,-151.0,0.000249,7]
[401995595,1768450246862,-151.0,0.000249,7]
[401995596,1768450246871,-155.346848,0.000249,7]
[401995597,1768450246880,-151.0,0.000249,2]
[401995598,1768450246889,-258.74096933,0.000249,2]
[401995599,1768450246898,-151.0,0.000249,7]
[401995600,1768450246907,-151.0,0.000249,7]
[401995601,1768450246917,-278.516578,0.000249,7]
[401995602,1768450246926,-196.726063,0.000249,7]
[401995603,1768450246936,-236753.05377167,0.000249,3]
[401995604,1768450246947,-11361.01976985,0.000249,3]
[401995605,1768450246958,-7009.76909184,0.000249,3]
[401995606,1768450246970,-5533.655966,0.000249,3]
[401995607,1768450246981,-2141.73222233,0.000249,3]
[401995608,1768450246992,-980.2307482,0.000249,3]
[401995609,1768450247012,-838.520007,0.000249,3]
[401995610,1768450247023,-32472.80445528,0.000249,3]
[401995611,1768450247034,-14439.6847663,0.000249,3]
[401995612,1768450247061,-23007.33514436,0.000249,3]
[401995613,1768450247078,-6781.71758069,0.000249,3]
[401995614,1768450247103,-79307.07755337,0.000249,3]
[401995615,1768450247115,-566.12069153,0.000249,3]
[401995616,1768450247126,-5137.30294379,0.000249,3]
[401995617,1768450438018,1000.0,0.00030136,120]
[401995618,1768450444681,1000.0,0.00030136,120]
[401995619,1768450450169,1000.0,0.00030136,120]
[401995620,1768450451120,4000.0,0.0003011,120]
[401995621,1768450455254,1000.0,0.00030136,120]
[401995622,1768450467274,1000.0,0.00030136,120]
[401995623,1768450472064,1000.0,0.00030136,120]
[401995624,1768450477412,1084.82,0.00030136,120]
[401995625,1768450483483,1000.0,0.00030136,120]
[401995626,1768450488202,1000.0,0.00030136,120]
[401995627,1768450492546,1000.0,0.00030136,120]
[401995628,1768450518064,594.0,0.0003011,120]
[401995631,1768450900550,-1200.0,0.00015322,2]
[401995632,1768450900574,-300.0,0.00015322,2]
[401995633,1768450900595,-500.0,0.00015323,2]
[401995634,1768450900617,-500.0,0.00015323,2]
[401995635,1768450900639,-500.0,0.00015323,2]
[401995636,1768450900661,-500.0,0.00015323,2]
[401995637,1768450900684,-618.84492793,0.00015323,2]
[401995638,1768450900708,-500.0,0.00015323,2]
[401995639,1768450900729,-500.0,0.00015323,2]
[401995640,1768450900753,-500.0,0.00015323,2]
[401995641,1768450900775,-500.0,0.00015323,2]
[401995642,1768450900796,-500.0,0.00015323,2]
[401995643,1768450900818,-500.0,0.00015323,2]
[401995644,1768450900839,-500.0,0.00015323,2]
[401995645,1768450900860,-500.0,0.00015323,2]
[401995646,1768450900881,-500.0,0.00015323,2]
[401995647,1768450900903,-500.0,0.00015323,2]
[401995648,1768450900925,-500.0,0.00015323,2]
[401995649,1768450900948,-263.49,0.00015323,2]
[401995650,1768450900970,-239.48983089,0.00015331,2]
[401995654,1768451315311,199922.04138694,0.00016,4]
[401995670,1768451431508,-5000.00833166,0.000162,5]
[401995671,1768451431517,-300.0,0.00016662,2]
[401995672,1768451431527,-1200.0,0.00016662,2]
[401995673,1768451431536,-177.54602634,0.00016663,2]
[401995674,1768451431545,-4569.0124723,0.00016663,2]